[Event "SVK-ch Open 2018"]
[Site "Banska Stiavnica"]
[Date "2018.07.08"]
[Round "2"]
[White "Aczel, Gergely"]
[Black "Hrbek, Stepan"]
[Result "1-0"]
[ECO "D27"]
[WhiteElo "2543"]
[BlackElo "2129"]
[Annotator "ChessBase"]
[PlyCount "101"]
[EventDate "2018.07.07"]
[EventType "swiss"]
[EventCountry "SVK"]
[SourceTitle "playchess.com"]
[Source "ChessBase"]
[SourceQuality "1"]
[TimeControl "40/5400+30:1800+30"]

1. d4 {[%emt 0:00:00]} d5 {[%emt 0:00:00]} 2. c4 {[%emt 0:00:00]} dxc4 {[%emt 0:00:00]} 3. e3 {[%emt 0:00:08]} Nf6 {[%emt 0:00:14]} 4. Bxc4 {[%emt 0:00:10]} e6 {[%emt 0:00:04]} 5. Nf3 {[%emt 0:00:10]} c5 {[%emt 0:00:20]} 6. O-O {[%emt 0:00:09]} a6 {[%emt 0:00:05]} 7. Bd3 {[%emt 0:00:32]} Nc6 {[%emt 0:02:01]} 8. a3 {[%emt 0:03:38]} Be7 {[%emt 0:06:03]} 9. dxc5 {[%emt 0:00:42]} Bxc5 {[%emt 0:00:42]} 10. b4 {[%emt 0:00:23]} Be7 {[%emt 0:05:25]} 11. Bb2 {[%emt 0:01:11]} b5 {[%emt 0:02:43]} 12. Qe2 {[%emt 0:02:28]} Qb6 {[%emt 0:01:03]} 13. Nbd2 {[%emt 0:03:25]} Bb7 {[%emt 0:01:30]} 14. Nb3 {[%emt 0:04:19]} O-O {[%emt 0:07:20]} 15. Rac1 {[%emt 0:00:51]} Nd7 {[%emt 0:00:13]} 16. Bxh7+ {[%emt 0:16:45]} Kxh7 {[%emt 0:00:42]} 17. Qd3+ {[%emt 0:00:12]} Kg8 {[%emt 0:00:06]} 18. Qxd7 {[%emt 0:00:10]} Bxb4 {[%emt 0:01:11]} 19. Nfd4 {[%emt 0:42:51]} Rfd8 {[%emt 0:05:57]} 20. Rxc6 {[%emt 0:00:46]} Bxc6 {[%emt 0:00:04]} 21. Qxc6 {[%emt 0:00:14]} Qxc6 {[%emt 0:00:15]} 22. Nxc6 {[%emt 0:00:03]} Rd3 {[%emt 0:00:05]} 23. axb4 {[%emt 0:03:22]} Rxb3 {[%emt 0:00:12]} 24. Bd4 {[%emt 0:00:09]} Kh7 {[%emt 0:03:03]} 25. Bc5 {[%emt 0:02:16]} Rc8 {[%emt 0:03:00]} 26. Nd4 {[%emt 0:02:50]} Rb2 {[%emt 0:05:02]} 27. Bd6 {[%emt 0:04:46]} Rc3 {[%emt 0:02:58]} 28. g4 {[%emt 0:01:21]} e5 {[%emt 0:07:08]} 29. Bxe5 {[%emt 0:01:57]} Rxb4 {[%emt 0:00:19]} 30. Ra1 {[%emt 0:02:29]} Ra4 {[%emt 0:03:23]} 31. Rb1 {[%emt 0:00:24]} b4 {[%emt 0:04:07]} 32. Kg2 {[%emt 0:00:20]} a5 {[%emt 0:02:38]} 33. Kf3 {[%emt 0:00:16]} Ra2 {[%emt 0:01:54]} 34. h4 {[%emt 0:00:46]} f6 {[%emt 0:08:21]} 35. Bd6 {[%emt 0:00:15]} Rd2 {[%emt 0:04:37]} 36. Ke4 {[%emt 0:01:00]} Rxf2 {[%emt 0:01:12]} 37. g5 {[%emt 0:00:02]} fxg5 {[%emt 0:04:50]} 38. hxg5 {[%emt 0:00:02]} Kg6 {[%emt 0:01:46]} 39. Be5 {[%emt 0:01:13]} Rc8 {[%emt 0:13:10]} 40. Ne6 {[%emt 0:01:27]} Ra8 {[%emt 0:04:46]} 41. Nf4+ {[%emt 0:31:05]} Kf7 {[%emt 0:02:46]} 42. g6+ {[%emt 0:00:00]} Kg8 {[%emt 0:02:56]} 43. Rc1 {[%emt 0:00:00]} a4 {[%emt 0:04:16]} 44. Rc7 {[%emt 0:00:00]} Rxf4+ {[%emt 0:00:03]} 45. exf4 {[%emt 0:00:00]} a3 {[%emt 0:01:32]} 46. Rxg7+ {[%emt 0:00:00]} Kf8 {[%emt 0:00:05]} 47. Rf7+ {[%emt 0:00:00]} Ke8 {[%emt 0:00:50]} 48. Rb7 {[%emt 0:00:00]} Kf8 {[%emt 0:01:02]} 49. Rh7 {[%emt 0:00:00]} Re8 {[%emt 0:00:54]} 50. Rh8+ {[%emt 0:00:00]} Ke7 {[%emt 0:00:04]} 51. g7 {[%emt 0:00:00]} 1-0

[Event "SVK-ch Open 2018"]
[Site "Banska Stiavnica"]
[Date "2018.07.08"]
[Round "2"]
[White "Bokros, Albert"]
[Black "Bronis, Marian"]
[Result "1-0"]
[ECO "B28"]
[WhiteElo "2483"]
[BlackElo "2101"]
[Annotator "ChessBase"]
[PlyCount "53"]
[EventDate "2018.07.07"]
[EventType "swiss"]
[EventCountry "SVK"]
[SourceTitle "playchess.com"]
[Source "ChessBase"]
[SourceQuality "1"]
[TimeControl "40/5400+30:1800+30"]

1. e4 {[%emt 0:01:31]} c5 {[%emt 0:00:00]} 2. Nf3 {[%emt 0:00:09]} a6 {[%emt 0:00:00]} 3. c4 {[%emt 0:01:10]} e6 {[%emt 0:01:39]} 4. Nc3 {[%emt 0:01:57]} Nc6 {[%emt 0:04:47]} 5. Be2 {[%emt 0:00:31]} d6 {[%emt 0:00:12]} 6. d4 {[%emt 0:00:22]} cxd4 {[%emt 0:00:04]} 7. Nxd4 {[%emt 0:00:05]} Nf6 {[%emt 0:00:06]} 8. Be3 {[%emt 0:00:42]} Be7 {[%emt 0:00:51]} 9. O-O {[%emt 0:00:08]} Ne5 {[%emt 0:00:09]} 10. Rc1 {[%emt 0:01:36]} O-O {[%emt 0:00:10]} 11. b3 {[%emt 0:01:39]} Qc7 {[%emt 0:01:20]} 12. f4 {[%emt 0:06:36]} Ned7 {[%emt 0:00:30]} 13. Bf3 {[%emt 0:00:30]} Re8 {[%emt 0:07:14]} 14. g4 {[%emt 0:05:27]} e5 {[%emt 0:18:03]} 15. Nf5 {[%emt 0:03:28]} exf4 16. Bxf4 {[%emt 0:01:21]} Ne5 {[%emt 0:02:36]} 17. g5 {[%emt 0:04:22]} Nxf3+ {[%emt 0:11:43]} 18. Qxf3 Nxe4 19. Qxe4 {[%emt 0:09:03]} Qc5+ {[%emt 0:02:08]} 20. Be3 {[%emt 0:01:30]} Bxf5 {[%emt 0:00:26]} 21. Rxf5 {[%emt 0:00:41]} Qc8 {[%emt 0:02:45]} 22. Qf3 {[%emt 0:01:57]} g6 {[%emt 0:02:49]} 23. Rxf7 {[%emt 0:02:13]} Qe6 {[%emt 0:01:13]} 24. Rf1 {[%emt 0:01:02]} Qe5 {[%emt 0:01:04]} 25. Nd5 {[%emt 0:02:09]} Bxg5 {[%emt 0:00:31]} 26. Bxg5 {[%emt 0:00:50]} Qxg5+ {[%emt 0:00:05]} 27. Kh1 {[%emt 0:00:28]} 1-0

[Event "SVK-ch Open 2018"]
[Site "Banska Stiavnica"]
[Date "2018.07.08"]
[Round "2"]
[White "Talla, Vladimir"]
[Black "Vyletel, Samuel"]
[Result "1-0"]
[ECO "D43"]
[WhiteElo "2402"]
[BlackElo "1798"]
[Annotator "NA"]
[PlyCount "45"]
[EventDate "2018.07.07"]
[EventType "swiss"]
[EventCountry "SVK"]
[SourceTitle "playchess.com"]
[Source "ChessBase"]
[SourceQuality "1"]
[TimeControl "40/5400+30:1800+30"]

{[%evp 10,33,22,0,31,27,32767,32767,22,32767,30,24,32767,6,4,4,32767,4,55,32767,8,8,11,27,91,68]} 1. d4 {[%emt 0:00:00]} d5 {[%emt 0:00:00]} 2. c4 {[%emt 0:00:00]} c6 {[%emt 0:00:01]} 3. Nf3 {[%emt 0:00:05]} Nf6 {[%emt 0:00:23]} 4. Nc3 {[%emt 0:00:44]} e6 {[%emt 0:00:31]} 5. Bg5 {[%emt 0:00:10]} h6 {[%emt 0:01:58]} 6. Bh4 {[%emt 0:00:17]} (6. Bxf6 $5 Qxf6 7. e3 $14) 6... Nbd7 {[%emt 0:03:51]} 7. e3 {[%emt 0:00:11]} Be7 {[%emt 0:01:01]} 8. Bd3 {[%emt 0:04:21]} dxc4 {[%emt 0:01:38]} 9. Bxc4 {[%emt 0:00:02]} b5 {[%emt 0:00:11]} 10. Bd3 {[%emt 0:00:07]} Bb7 {[%emt 0:04:24]} 11. O-O {[%emt 0:00:19]} a6 {[%emt 0:02:37]} 12. a4 {[%emt 0:06:09]} O-O {[%emt 0:10:59]} 13. Rc1 {[%emt 0:02:12] LiveBook: 29 Games} Rc8 {[%emt 0:04:03]} 14. Ne5 {[%emt 0:15:57] Nxe} Nxe5 {[%emt 0:17:14]} 15. dxe5 {[%emt 0:00:06]} Nd5 {[%emt 0:04:26]} 16. Bxe7 {[%emt 0:00:43]} Qxe7 {[%emt 0:07:06]} (16... Nxc3 $11 {keeps the balance.} 17. Bh7+ (17. Bxd8 Nxd1 18. Rfxd1 Rfxd8 $11) (17. Rxc3 Qxe7 18. Qe2 Rfd8 $11) 17... Kh8 18. Bxd8 Nxd1) 17. Ne4 $14 {[%emt 0:03:09]} Nb6 {[%emt 0:10:34]} 18. Qg4 {[%emt 0:13:44]} Nd5 {[%emt 0:06:43]} 19. Nd6 {[%emt 0:03:38]} Rcd8 {[%emt 0:02:27]} 20. Qd4 {[%emt 0:02:21]} f6 {[%emt 0:03:45]} 21. f4 {[%emt 0:05:06]} fxe5 {[%emt 0:04:44]} 22. fxe5 {[%emt 0:00:05]} g5 {[%emt 0:01:37]} 23. Qe4 {[%emt 0:06:44]} 1-0

[Event "SVK-ch Open 2018"]
[Site "Banska Stiavnica"]
[Date "2018.07.08"]
[Round "2"]
[White "Jablonicky, Martin"]
[Black "Treybal, Dusan"]
[Result "1-0"]
[ECO "C63"]
[WhiteElo "2356"]
[BlackElo "2081"]
[Annotator "NA"]
[PlyCount "39"]
[EventDate "2018.07.07"]
[EventType "swiss"]
[EventCountry "SVK"]
[SourceTitle "playchess.com"]
[Source "ChessBase"]
[SourceQuality "1"]
[TimeControl "40/5400+30:1800+30"]

1. e4 {[%emt 0:00:00]} e5 {[%emt 0:00:00]} 2. Nf3 {[%emt 0:00:07]} Nc6 {[%emt 0:00:16]} 3. Bb5 {[%emt 0:00:13]} f5 {[%emt 0:00:17]} 4. d4 {[%emt 0:01:14]} fxe4 {[%emt 0:02:35]} 5. Nxe5 {[%emt 0:00:03]} Nxe5 {[%emt 0:00:29]} 6. dxe5 {[%emt 0:00:03]} c6 {[%emt 0:00:25]} 7. Nc3 {[%emt 0:00:03]} d5 {[%emt 0:00:13]} 8. Qxd5 {[%emt 0:04:17]} Qxd5 {[%emt 0:06:09]} ({Lieber} 8... cxb5 $15 9. Qxb5+ Bd7 10. Qxb7 Qc8 11. Qxe4 Bc6) 9. Nxd5 {[%emt 0:05:06]} cxb5 $2 {[%emt 0:01:11]} ({Lieber} 9... Kd7 $14) 10. Nc7+ {[%emt 0:00:39]} Kd8 {[%emt 0:04:40]} 11. Nxa8 {[%emt 0:00:08]} Be6 {[%emt 0:35:08]} 12. Be3 {[%emt 0:08:39]} b6 {[%emt 0:00:22]} 13. a4 {[%emt 0:00:43]} Kc8 {[%emt 0:00:18]} 14. axb5 {[%emt 0:06:49]} Kb7 {[%emt 0:00:14]} 15. O-O {[%emt 0:04:37]} (15. Nc7 $142 Bc8 16. Nd5) 15... Ne7 {[%emt 0:00:28]} 16. Nc7 {[%emt 0:05:28]} Bc4 $18 {[%emt 0:02:27]} (16... Kxc7 {war nötig.} 17. Rxa7+ Kb8) 17. Ne8 {[%emt 0:10:25]} Bxf1 {[%emt 0:01:01]} 18. Nd6+ {[%emt 0:00:10]} Kb8 {[%emt 0:00:24]} 19. Kxf1 {[%emt 0:00:43]} Ng6 {[%emt 0:00:57]} 20. Nxe4 1-0

[Event "SVK-ch Open 2018"]
[Site "Banska Stiavnica"]
[Date "2018.07.08"]
[Round "2"]
[White "Vojtek, Vladimir"]
[Black "Brhel, Jan"]
[Result "1-0"]
[ECO "C41"]
[WhiteElo "2310"]
[BlackElo "2070"]
[Annotator "NA"]
[PlyCount "65"]
[EventDate "2018.07.07"]
[EventType "swiss"]
[EventCountry "SVK"]
[SourceTitle "playchess.com"]
[Source "ChessBase"]
[SourceQuality "1"]
[TimeControl "40/5400+30:1800+30"]

1. e4 {[%emt 0:00:00]} e5 {[%emt 0:00:07]} 2. Nf3 {[%emt 0:00:00]} d6 {[%emt 0:00:51]} 3. h3 {[%emt 0:00:30]} Nf6 {[%emt 0:00:22]} 4. Nc3 {[%emt 0:00:10]} Be7 {[%emt 0:00:20]} 5. Bc4 {[%emt 0:00:43]} Nc6 {[%emt 0:00:59]} 6. d3 {[%emt 0:06:30]} O-O {[%emt 0:01:05]} 7. Be3 {[%emt 0:01:11]} Na5 {[%emt 0:05:53]} 8. Qe2 {[%emt 0:00:41] LiveBook: 3 Games} c6 {[%emt 0:02:40]} 9. Bb3 {[%emt 0:03:24]} Re8 {[%emt 0:00:51]} 10. O-O-O {[%emt 0:06:21]} Nxb3+ {[%emt 0:00:56]} 11. axb3 {[%emt 0:02:06]} b5 {[%emt 0:13:30]} 12. d4 {[%emt 0:15:35]} Qc7 $17 {[%emt 0:04:05]} 13. d5 {[%emt 0:17:11]} b4 {[%emt 0:01:57]} 14. Na4 {[%emt 0:00:07]} cxd5 {[%emt 0:00:31]} 15. exd5 {[%emt 0:00:16]} Qa5 {[%emt 0:00:39]} 16. Nd2 {[%emt 0:20:43]} Bd7 {[%emt 0:02:20]} 17. Nc4 {[%emt 0:00:54]} Qa6 {[%emt 0:00:23]} 18. g4 {[%emt 0:06:06]} Bb5 {[%emt 0:01:38]} 19. g5 {[%emt 0:00:37]} Nd7 {[%emt 0:02:10]} 20. Rhg1 {[%emt 0:02:13]} Rac8 {[%emt 0:02:47]} 21. Rg4 {[%emt 0:00:06]} Rc7 {[%emt 0:04:01]} 22. h4 {[%emt 0:10:27]} Rec8 {[%emt 0:01:35]} 23. h5 {[%emt 0:02:02]} Bxa4 {[%emt 0:04:09]} 24. g6 {[%emt 0:00:18]} fxg6 {[%emt 0:03:43]} 25. hxg6 {[%emt 0:00:01]} h5 {[%emt 0:03:04]} 26. Qf3 {[%emt 0:00:48]} Nf6 {[%emt 0:00:14]} 27. Rh4 {[%emt 0:01:15]} Bd7 {[%emt 0:00:55]} 28. Rdh1 {[%emt 0:01:01]} Kf8 {[%emt 0:22:16]} 29. Rxh5 {[%emt 0:00:26]} Ke8 {[%emt 0:00:08]} 30. Rh8+ {[%emt 0:00:31]} Bf8 {[%emt 0:00:07]} 31. Qxf6 {[%emt 0:00:49]} gxf6 {[%emt 0:04:34]} 32. g7 {[%emt 0:00:01]} Ke7 {[%emt 0:03:16]} 33. R1h7 {[%emt 0:01:34]} 1-0

[Event "SVK-ch Open 2018"]
[Site "Banska Stiavnica"]
[Date "2018.07.08"]
[Round "2"]
[White "Urhegyi, Marton"]
[Black "Odler, Daniel"]
[Result "1-0"]
[ECO "B40"]
[WhiteElo "2303"]
[BlackElo "2067"]
[Annotator "NA"]
[PlyCount "41"]
[EventDate "2018.07.07"]
[EventType "swiss"]
[EventCountry "SVK"]
[SourceTitle "playchess.com"]
[Source "ChessBase"]
[SourceQuality "1"]
[TimeControl "40/5400+30:1800+30"]

1. e4 {[%emt 0:00:00]} c5 {[%emt 0:00:00]} 2. Nf3 {[%emt 0:00:00]} e6 {[%emt 0:00:00]} 3. c3 {[%emt 0:00:00]} Nf6 {[%emt 0:00:36]} 4. e5 {[%emt 0:00:11]} Nd5 {[%emt 0:00:09]} 5. d4 {[%emt 0:00:06]} cxd4 {[%emt 0:00:25]} 6. cxd4 {[%emt 0:00:06]} Nc6 {[%emt 0:00:21]} 7. a3 {[%emt 0:01:16]} d6 {[%emt 0:01:12]} 8. Bd3 {[%emt 0:01:44]} Qc7 {[%emt 0:02:30]} 9. O-O {[%emt 0:07:24]} dxe5 {[%emt 0:01:15]} 10. dxe5 {[%emt 0:00:27]} Be7 {[%emt 0:06:33]} 11. Qe2 {[%emt 0:03:33]} Bd7 {[%emt 0:06:36]} 12. Bd2 {[%emt 0:02:14]} Na5 {[%emt 0:03:30]} 13. Nc3 {[%emt 0:06:07]} Nxc3 {[%emt 0:01:09]} 14. Bxc3 {[%emt 0:02:10]} Nb3 {[%emt 0:06:16]} 15. Rad1 {[%emt 0:02:34]} Bc6 {[%emt 0:05:10]} 16. Bc2 {[%emt 0:06:41]} Qb6 {[%emt 0:06:47]} 17. Qc4 $14 {[%emt 0:05:07]} Bxf3 {[%emt 0:07:48]} 18. gxf3 {[%emt 0:01:14]} Nc5 {[%emt 0:11:26]} 19. b4 {[%emt 0:06:34]} Na6 {[%emt 0:03:18]} 20. Ba4+ {[%emt 0:02:37]} Kf8 {[%emt 0:00:03]} 21. Rd7 {[%emt 0:01:08]} 1-0

[Event "SVK-ch Open 2018"]
[Site "Banska Stiavnica"]
[Date "2018.07.08"]
[Round "2"]
[White "Kantorik, Marian"]
[Black "Bartek, Ladislav"]
[Result "1/2-1/2"]
[ECO "A69"]
[WhiteElo "2260"]
[BlackElo "2049"]
[Annotator "NA"]
[PlyCount "67"]
[EventDate "2018.07.07"]
[EventType "swiss"]
[EventCountry "SVK"]
[SourceTitle "playchess.com"]
[Source "ChessBase"]
[SourceQuality "1"]
[TimeControl "40/5400+30:1800+30"]

1. d4 {[%emt 0:03:19]} Nf6 {[%emt 0:00:00]} 2. c4 {[%emt 0:00:04]} g6 {[%emt 0:00:00]} 3. Nc3 {[%emt 0:00:13]} Bg7 {[%emt 0:00:00]} 4. e4 {[%emt 0:00:03]} d6 {[%emt 0:00:06]} 5. f4 {[%emt 0:00:01]} O-O {[%emt 0:00:14]} 6. Nf3 {[%emt 0:00:02]} c5 {[%emt 0:00:07]} 7. d5 {[%emt 0:00:01]} e6 {[%emt 0:00:11]} 8. Be2 {[%emt 0:00:15]} exd5 {[%emt 0:00:10]} 9. cxd5 {[%emt 0:00:04]} Re8 {[%emt 0:00:11]} 10. e5 {[%emt 0:00:04]} dxe5 {[%emt 0:00:10]} 11. fxe5 {[%emt 0:00:05]} Ng4 {[%emt 0:00:10]} 12. e6 {[%emt 0:00:03]} fxe6 {[%emt 0:00:22] A69: Modern Benoni: Four Pawns Attack with 9...Re8} 13. d6 {[%emt 0:00:05]} (13. Bg5 Qb6 14. Qd2 c4 15. O-O-O exd5 16. Nxd5 Qxb2+ 17. Qxb2 Bxb2+ 18. Kxb2 Rxe2+ 19. Kc3 Nc6 20. Rhe1 Rxe1 21. Rxe1 {1-0 (31) Jobava,B (2704)-Ponkratov,P (2611) Moscow 2012}) 13... Nc6 {[%emt 0:07:16]} 14. O-O {[%emt 0:00:11]} Nd4 {[%emt 0:01:18] LiveBook: 4 Games} 15. Ne4 {[%emt 0:00:08]} Rf8 {[%emt 0:19:38]} 16. Bg5 {[%emt 0:08:36]} Qb6 {[%emt 0:02:36]} 17. Nxd4 {[%emt 0:03:41]} Bxd4+ {[%emt 0:00:25]} 18. Kh1 {[%emt 0:00:11]} Rxf1+ {[%emt 0:03:25]} 19. Qxf1 {[%emt 0:00:53]} Qxb2 $2 $146 {[%emt 0:04:54]} ({Predecessor:} 19... Qc6 $1 $11 {und Schwarz steht sicher.} 20. Bf3 (20. Be7 Bd7 $11) 20... Qxe4 21. Bxe4 Nf2+ 22. Kg1 (22. Qxf2 Bxf2 23. Bxb7 Bxb7 $11) 22... Nxe4+ 23. Kh1 Nf2+ {½-½ (23) Wiewiora,E (2152)-Mroziak,M (2197) Polanica Zdroj 2012} 24. Kg1 Nh3+ 25. Kh1 Nf2+ 26. Kg1 Nh3+ 27. Kh1 Nf2+) 20. Rd1 {[%emt 0:05:56]} Qc2 {[%emt 0:06:11]} 21. Qf3 {[%emt 0:12:32]} Qxe4 {[%emt 0:01:26]} 22. Qxg4 {[%emt 0:00:05]} Qxg4 {[%emt 0:04:23]} 23. Bxg4 {[%emt 0:00:04]} Bd7 {[%emt 0:00:08]} 24. Re1 {[%emt 0:00:48]} Kf7 {[%emt 0:02:00]} 25. h4 {[%emt 0:02:50]} b5 {[%emt 0:04:20]} 26. h5 $19 {[%emt 0:00:45]} a5 {[%emt 0:00:30]} 27. Rf1+ {[%emt 0:02:20]} Kg8 {[%emt 0:01:04]} 28. Re1 {[%emt 0:00:23]} Kf7 {[%emt 0:08:18]} 29. Rf1+ {[%emt 0:00:05]} Kg8 {[%emt 0:01:13]} 30. Re1 {[%emt 0:00:06]} Re8 {[%emt 0:01:50]} 31. Be7 {[%emt 0:00:23]} Rxe7 {[%emt 0:00:14]} 32. dxe7 {[%emt 0:00:12]} Kf7 {[%emt 0:00:05]} 33. hxg6+ {[%emt 0:12:35]} hxg6 {[%emt 0:00:10]} 34. Bxe6+ {[%emt 0:01:12]} 1/2-1/2

[Event "SVK-ch Open 2018"]
[Site "Banska Stiavnica"]
[Date "2018.07.08"]
[Round "2"]
[White "Franzen, Jozef"]
[Black "Posa, Norbert"]
[Result "0-1"]
[ECO "B13"]
[WhiteElo "2256"]
[BlackElo "2036"]
[Annotator "NA"]
[PlyCount "54"]
[EventDate "2018.07.07"]
[EventType "swiss"]
[EventCountry "SVK"]
[SourceTitle "playchess.com"]
[Source "ChessBase"]
[SourceQuality "1"]
[TimeControl "40/5400+30:1800+30"]

1. e4 {[%emt 0:00:00]} c6 {[%emt 0:00:00]} 2. d4 {[%emt 0:00:00]} d5 {[%emt 0:00:00]} 3. exd5 {[%emt 0:00:00]} cxd5 {[%emt 0:00:00]} 4. Bd3 {[%emt 0:00:03]} Nc6 {[%emt 0:00:22]} 5. c3 {[%emt 0:00:03]} Qc7 {[%emt 0:00:32]} 6. Ne2 {[%emt 0:00:26]} Bg4 {[%emt 0:01:55]} 7. f3 {[%emt 0:00:18]} Bd7 {[%emt 0:01:00]} 8. Bf4 {[%emt 0:00:26]} e5 {[%emt 0:00:31] B13: Caro-Kann: Exchange Variation and Panov-Botvinnik Attack} 9. dxe5 {[%emt 0:00:29]} Nxe5 {[%emt 0:00:13]} 10. Bc2 {[%emt 0:00:47]} Nf6 {[%emt 0:00:55]} 11. Nd2 {[%emt 0:07:49]} Bd6 {[%emt 0:03:50]} 12. O-O {[%emt 0:03:54]} h6 $146 {[%emt 0:20:04]} ({Predecessor:} 12... O-O 13. Nd4 Rfe8 14. Bg3 Nh5 15. Re1 Nxg3 16. hxg3 {0-1 (27) Smith,R (2287)-Zhao,Z (2586) Rotorua 2011}) 13. Kh1 {[%emt 0:09:41]} g5 {[%emt 0:01:29]} 14. Bg3 {[%emt 0:02:07]} O-O-O {[%emt 0:03:14]} 15. Nb3 {[%emt 0:04:24]} h5 {[%emt 0:05:33]} 16. Qd4 {[%emt 0:03:31]} b6 {[%emt 0:05:37]} 17. a4 {[%emt 0:13:55]} h4 {[%emt 0:00:06]} 18. Be1 {[%emt 0:00:19]} h3 $11 {[%emt 0:07:59]} (18... Bc5 $17 19. Nxc5 bxc5) 19. g3 {[%emt 0:00:12]} (19. g4 $11 {remains equal.}) 19... Bc5 {[%emt 0:01:29]} 20. Nxc5 {[%emt 0:01:08]} bxc5 {[%emt 0:02:33]} 21. Qf2 {[%emt 0:00:09]} g4 {[%emt 0:01:41]} 22. fxg4 {[%emt 0:05:09]} Nfxg4 {[%emt 0:01:33]} 23. Qf4 {[%emt 0:00:28]} Qb7 {[%emt 0:05:20]} 24. Bf5 {[%emt 0:09:29]} d4+ {[%emt 0:01:49]} 25. Qe4 {[%emt 0:00:29]} Bxf5 {[%emt 0:05:00]} 26. Qxb7+ {[%emt 0:00:07]} Kxb7 {[%emt 0:00:07] Rx} 27. Rxf5 {[%emt 0:00:11]} d3 {[%emt 0:00:17]} 0-1

[Event "SVK-ch Open 2018"]
[Site "Banska Stiavnica"]
[Date "2018.07.08"]
[Round "2"]
[White "Sarkozy, Ladislav"]
[Black "Toma, Rudolf"]
[Result "1-0"]
[ECO "E08"]
[WhiteElo "2247"]
[BlackElo "2018"]
[Annotator "NA"]
[PlyCount "71"]
[EventDate "2018.07.07"]
[EventType "swiss"]
[EventCountry "SVK"]
[SourceTitle "playchess.com"]
[Source "ChessBase"]
[SourceQuality "1"]
[TimeControl "40/5400+30:1800+30"]

1. d4 {[%emt 0:00:00]} d5 {[%emt 0:00:00]} 2. c4 {[%emt 0:00:00]} e6 {[%emt 0:00:00]} 3. Nf3 {[%emt 0:00:00]} Nf6 {[%emt 0:00:15]} 4. g3 {[%emt 0:00:33]} Be7 {[%emt 0:09:04]} 5. Bg2 {[%emt 0:00:15]} O-O {[%emt 0:00:06]} 6. O-O {[%emt 0:01:41]} Nbd7 {[%emt 0:01:31]} 7. Qc2 {[%emt 0:02:20]} c6 {[%emt 0:03:08]} 8. Rd1 {[%emt 0:00:17]} Ne4 {[%emt 0:00:20]} 9. b3 {[%emt 0:01:33]} f5 {[%emt 0:00:37]} 10. e3 {[%emt 0:01:41] E08: Closed Catalan: Main Line: 7 Qc2} (10. Ba3 Bxa3 11. Nxa3 Qe7 12. Qb2 g5 13. Nc2 g4 14. Ne5 Nxe5 15. dxe5 Bd7 16. f3 gxf3 17. exf3 Ng5 18. f4 Ne4 19. cxd5 exd5 {½-½ (37) Govciyan,P (2417)-Chernuschevich,A (2533) France 2007}) 10... Ndf6 {[%emt 0:00:21]} 11. Ne5 $146 {[%emt 0:01:18]} ({Predecessor:} 11. Ne1 Bd7 12. f3 Nd6 13. Nd3 Rc8 14. Ba3 b5 15. Nd2 a5 16. Nc5 b4 17. Bb2 Nf7 {½-½ (40) Giardelli,S (2425)-Monetti,C (1930) Vicente Lopez 1993}) 11... Bd7 {[%emt 0:00:50]} 12. Ba3 {[%emt 0:01:37]} Be8 {[%emt 0:00:30]} 13. Bxe7 {[%emt 0:00:39]} Qxe7 {[%emt 0:00:08]} 14. f3 {[%emt 0:01:56]} Ng5 {[%emt 0:00:32]} 15. Nc3 {[%emt 0:01:37]} Nd7 {[%emt 0:01:14]} 16. f4 {[%emt 0:03:47]} Ne4 {[%emt 0:00:25]} 17. Nxe4 {[%emt 0:01:58]} Nxe5 {[%emt 0:01:08]} 18. dxe5 {[%emt 0:00:36]} dxe4 {[%emt 0:00:19]} 19. c5 {[%emt 0:00:56]} a5 {[%emt 0:03:11]} (19... Bh5 $142) 20. Rd6 {[%emt 0:01:16]} Bh5 {[%emt 0:00:30]} 21. Qc4 {[%emt 0:00:39]} Rfe8 {[%emt 0:00:19]} 22. Rc1 {[%emt 0:02:19]} Rad8 {[%emt 0:00:30]} 23. Rc2 {[%emt 0:00:18]} Rxd6 $18 {[%emt 0:00:06]} 24. cxd6 Qd7 25. Qc5 {[%emt 0:06:24]} Ra8 {[%emt 0:00:43]} 26. Qb6 {[%emt 0:01:22]} Kf8 {[%emt 0:00:09]} 27. Bf1 {[%emt 0:02:01]} Ke8 {[%emt 0:03:14]} 28. Rc5 {[%emt 0:00:45]} h6 {[%emt 0:04:49]} 29. Rxa5 {[%emt 0:00:17]} Rxa5 {[%emt 0:00:17]} 30. Qxa5 {[%emt 0:00:05]} Qc8 {[%emt 0:01:21]} 31. Qa7 {[%emt 0:02:46]} g5 {[%emt 0:00:56]} 32. Ba6 {[%emt 0:00:16]} gxf4 {[%emt 0:01:37]} 33. gxf4 {[%emt 0:00:29]} Qd8 {[%emt 0:03:23]} 34. Bxb7 {[%emt 0:00:24]} Qh4 {[%emt 0:00:37]} 35. Bxc6+ {[%emt 0:00:06]} Kf8 {[%emt 0:00:10]} 36. Qe7+ {[%emt 0:00:05]} 1-0